Cogmind - Beta 16.1 @@@ ROGUE MODE // 2026.04.22 @ 21:39:03 Player: FloorSandwich Result: Destroyed by 4A-XHZ(R) with Subdweller Laser Performance ------------- Evolutions (0) 0 Regions Visited (3) 600 Robots Destroyed (29) 145 Value Destroyed (538) 538 Prototype IDs (2) 40 Alien Tech Used (0) 0 Bonus (0) 0 TOTAL SCORE: 1323 Bonus ------- None Cogmind --------- Core Integrity 0/250 Matter 242/300 Energy 71/100 System Corruption 1% Temperature Cool (6) Movement Core (150) Ox2 Location -10/Subcaves Parts ------- > --- POWER (1) -------- (None) > --- PROPULSION (2) --- (None) > --- UTILITY (2) ------ Small Storage Unit Signal Interpreter > --- WEAPON (2) ------- Subdweller Laser > --- INVENTORY (8) ---- Transport Network Coupler Peak State ------------ > --- POWER ------------ Ion Engine > --- PROPULSION ------- Makeshift Leg Makeshift Leg > --- UTILITY ---------- Signal Interpreter > --- WEAPON ----------- Subdweller Laser Grenade Launcher > --- INVENTORY -------- Improved Ion Engine Aluminum Leg Makeshift Leg Small Storage Unit Transport Network Coupler [Rating: 13] Favorites ----------- Power Ion Engine Engine Ion Engine Propulsion Aluminum Leg Leg Aluminum Leg Utility Signal Interpreter Device Improved Terrain Scanner Storage Small Storage Unit Processor Signal Interpreter Weapon Assault Rifle Energy Gun Medium Laser Ballistic Gun Assault Rifle Launcher Grenade Launcher Build | -11 -10 -10 -10 ------- Run | Yrd Mat Min Sub Slots Evolved . | . . . . Power . | . . . . Propulsion . | . . . . Utility . | . . . . Weapon . | . . . . Parts Attached 24 | 6 5 6 7 Power 5 | 1 1 2 1 Engine 5 | 1 1 2 1 Core . | . . . . Reactor . | . . . . Propulsion 9 | 2 2 2 3 Treads . | . . . . Leg 9 | 2 2 2 3 Wheel . | . . . . Hover . | . . . . Flight . | . . . . Utility 3 | 1 1 . 1 Device 1 | 1 . . . Storage 1 | . . . 1 Processor 1 | . 1 . . Hackware . | . . . . Protection . | . . . . Artifact . | . . . . Weapon 7 | 2 1 2 2 Energy Gun 3 | . . 1 2 Energy Cannon . | . . . . Ballistic Gun 3 | 2 . 1 . Ballistic Cannon . | . . . . Launcher 1 | . 1 . . Special Weapon . | . . . . Impact Weapon . | . . . . Slashing Weapon . | . . . . Piercing Weapon . | . . . . Special Melee Weapon . | . . . . Unidentified Prototypes . | . . . . Parts Lost 11 | . . 3 8 Power 3 | . . 1 2 Propulsion 2 | . . . 2 Utility 1 | . . . 1 Weapon 5 | . . 2 3 Highest Loss Streak 3 | . . 2 3 To Critical Strikes . | . . . . Average Backups 2 | 1 2 2 3 Power . | . . . . Propulsion . | . . . . Utility 1 | . 1 2 1 Weapon . | . . . . Tool/Special . | . . . . Unused Backups 1 | . . . 1 Power . | . . . . Propulsion . | . . . . Utility 1 | . . . 1 Weapon . | . . . . Tool/Special . | . . . . Average Slot Usage (%) 93 | . 92 99 85 Engine 13 | . 14 13 13 Leg 27 | . 28 28 26 Device 10 | . 13 14 3 Processor 12 | . 7 14 14 Energy Gun 10 | . . 12 14 Ballistic Gun 12 | . 27 14 . Launcher 3 | . . . 10 Peak Build Rating 13 | 8 9 9 13 Average Rating 9 | 4 8 8 11 On Entrance 6 | . 8 9 9 Avg Prop Armor Cover (%) . | . . . . Naked Turns . | . . . . Heaviest Build 19 | 10 11 10 19 Greatest Support 40 | 20 20 20 40 Greatest Overweight (x) 2 | . . . 2 Average Overweight (x) . | . . . . Largest Inventory Capacity 8 | 5 5 5 8 Average Capacity 5 | 5 5 5 5 Most Carried 5 | 5 5 5 5 Average Carried 2 | 1 2 2 3 Final Capacity 8 | 5 5 5 8 Final Carried 3 | 1 3 3 1 Class Distribution -------------------- 55% | Scavenger-Mutant 44% | Mutant Dominant Class ---------------- Mutant | -10/Materials Scavenger-Mutant | -10/Mines Mutant | -10/Subcaves Resources | -11 -10 -10 -10 ----------- Run | Yrd Mat Min Sub Matter Collected 885 | 314 93 188 290 Remotely . | . . . . Salvage Created 838 | 135 362 130 211 Parts 63 | 18 25 9 11 Haulers Intercepted 1 | . 1 . . Recyclers Shooed 1 | . 1 . . Parts Field Recycled . | . . . . Retrieved Matter . | . . . . Parts Self-Destructed 7 | . . . 7 Prevented . | . . . . Parts Restored . | . . . . Kills | -11 -10 -10 -10 ------- Run | Yrd Mat Min Sub Combat Hostiles Destroyed 17 | . 6 5 6 Guns 14 | . 6 3 5 AOE 3 | . . 2 1 Classes Destroyed 10 | 3 5 . 2 Worker 4 | 2 2 . . Builder 1 | . 1 . . Tunneler 3 | 3 . . . Hauler 1 | . 1 . . Recycler 2 | 1 1 . . Watcher 1 | . 1 . . Swarmer 7 | . 3 3 1 Grunt 5 | . 3 2 . Sentry 1 | . . . 1 Subdweller 4 | . . . 4 Best Kill Streak 4 | 3 4 3 2 Combat Bots Only 3 | . 3 3 2 Max Kills in Single Turn 2 | 1 1 2 1 Gunslinging . | . . . . Exploded 2 | . . 2 1 Melee . | . . . . Uniques/NPCs Destroyed . | . . . . Combat | -11 -10 -10 -10 -------- Run | Yrd Mat Min Sub Hostile Shots Fired 142 | . 26 64 52 Missed 40 | . 8 20 12 Hits 102 | . 18 44 40 Projectile 102 | . 18 44 40 Critical Strikes 1 | . . . 1 Damage Taken 1411 | . 178 435 798 Core 266 | . . 101 165 Absorbed by Shields . | . . . . Regen/Repaired (Parts) 17 | . 17 . . Core Remaining (%) 100 | 100 . . . Volleys Fired 98 | 9 40 17 32 Largest 2 | 2 2 2 2 Hottest 110 | 40 50 70 110 Shots Fired 175 | 18 78 30 49 Gun 162 | 18 75 29 40 Cannon . | . . . . Launcher 13 | . 3 1 9 Special . | . . . . Kinetic 121 | 18 75 21 7 Thermal 41 | . . 8 33 Explosive 13 | . 3 1 9 Electromagnetic . | . . . . Robot Hit Streak 9 | 9 8 4 6 Robot Miss Streak 3 | 2 3 3 3 Penetration Max . | . . . . Secondary Targets 2 | . 1 1 . Max Gunslinging Chain 1 | . 1 1 . Shots Hit Robots 107 | 12 44 19 32 Core Hits 43 | 6 18 7 12 Critical Kills . | . . . . Critical Parts Destroyed 2 | . 2 . . Critical Strikes 4 | . 2 . 2 Burn 2 | . . . 2 Destroy 2 | . 2 . . Melee Attacks . | . . . . Impact . | . . . . Slashing . | . . . . Piercing . | . . . . Sneak Attacks . | . . . . Combat Hostiles . | . . . . Follow-up Attacks . | . . . . Damage Inflicted 1816 | 152 592 287 785 Guns 1417 | 152 590 221 454 Cannons . | . . . . Explosions 397 | . . 66 331 Melee . | . . . . Ramming 2 | . 2 . . Kinetic 924 | 152 590 146 36 Thermal 493 | . . 75 418 Explosive 397 | . . 66 331 Electromagnetic . | . . . . Impact . | . . . . Slashing . | . . . . Piercing . | . . . . Highest Corruption 1 | . 1 1 1 Average Corruption 1 | . 1 1 1 Corruption Purged . | . . . . Corruption Blocked . | . . . . Effects 22 | . 6 10 6 Message Errors 6 | . 2 2 2 Matter Fused 3 | . 1 1 1 Heat Flow Errors 1 | . 1 . . Energy Discharges 1 | . 1 . . Parts Rejected 1 | . . . 1 Data Loss (minor) 6 | . . 5 1 Data Loss (major) 1 | . . . 1 Alerts 1 | . . 1 . Weapon Failures 2 | . 1 1 . Overload Shots . | . . . . Overflow Damage . | . . . . Projectiles . | . . . . Explosions . | . . . . Melee . | . . . . Knockbacks . | . . . . Impact . | . . . . Kinetic . | . . . . Secondary . | . . . . Self-Inflicted Damage 68 | . . 21 47 Shots 4 | . . 1 3 Rammed . | . . . . Targets Rammed 2 | . 2 . . Kicked 2 | . 2 . . Crushed . | . . . . Highest Temperature 181 | . 181 76 4 Average Temperature 39 | . 98 27 2 Received Heat Transfer 315 | . 60 99 156 Siege Activations . | . . . . Martial Activations . | . . . . Shielding Activations . | . . . . Robots Disrupted . | . . . . Combat Hostiles . | . . . . Robots Corrupted . | . . . . Combat Hostiles . | . . . . Parts Fried . | . . . . Impact Corruptions . | . . . . Robots Melted . | . . . . Combat Hostiles . | . . . . Parts Melted . | . . . . Heat Transferred 1090 | . . 222 868 Parts Sabotaged . | . . . . Parts Stolen . | . . . . Parts Stripped . | . . . . Power Chain Reactions . | . . . . Alert | -11 -10 -10 -10 ------- Run | Yrd Mat Min Sub Maximum Alert Level . | . . . . Low Security (%) 100 | 100 100 100 . Level 1 . | . . . . Level 2 . | . . . . Level 3 . | . . . . Level 4 . | . . . . Level 5 . | . . . . High Security . | . . . . Max Security . | . . . . Peak Influence 87 | 10 87 70 . Initial 6 | . 6 . . Average 11 | 2 25 5 . Influence Increases 465 | 30 255 140 40 Destroy 0b10 Robot/C 260 | . 120 100 40 Destroy 0b10 Robot/NC 60 | 30 30 . . Destroy Leader 44 | . 24 20 . Successful Hack 19 | . 19 . . Disable Machine 30 | . 15 15 . Destroy Structure 22 | . 17 5 . Lose Combat Pursuer 30 | . 30 . . Influence Decreases 465 | 20 265 140 40 Entered New Map 4 | . 4 . . Time Decay 441 | 20 261 130 30 Lost Part 20 | . . 10 10 Squads Dispatched 1 | . 1 . . Investigation 1 | . 1 . . Extermination . | . . . . Reinforcement . | . . . . Assault . | . . . . Garrison . | . . . . Intercept . | . . . . Searches Triggered . | . . . . Construction Impeded . | . . . . Haulers Reinforced . | . . . . Active Scanning Responses . | . . . . Cargo Convoy Interrupts . | . . . . Stealth | -11 -10 -10 -10 --------- Run | Yrd Mat Min Sub Distress Signals . | . . . . Communications Jammed . | . . . . Distress Signals . | . . . . Times Spotted 28 | . 16 5 7 Peak Tracking Total 3 | . 3 3 2 Tactical Retreats 1 | . 1 . . Traps | -11 -10 -10 -10 ------- Run | Yrd Mat Min Sub Traps Triggered 1 | . . . 1 Indirectly . | . . . . Trap Hack Attempts . | . . . . Triggered . | . . . . Disarmed 4 | . 4 . . Reprogrammed . | . . . . Reused . | . . . . Traps Extracted . | . . . . Installed . | . . . . Triggered . | . . . . Machines | -11 -10 -10 -10 ---------- Run | Yrd Mat Min Sub Machines Disabled 3 | . 2 1 . Max in Single Turn 1 | . 1 1 . Machines Repaired . | . . . . Machines Dismantled . | . . . . Machines Sabotaged . | . . . . Overloaded Fab Kills . | . . . . Hacking | -11 -10 -10 -10 --------- Run | Yrd Mat Min Sub Machines Accessed 5 | . 5 . . Terminals 3 | . 3 . . Fabricators . | . . . . Repair Stations 1 | . 1 . . Recycling Units 1 | . 1 . . Scanalyzers . | . . . . Garrison Access . | . . . . Total Hacks 20 | . 20 . . Successful 12 | . 12 . . Failed 8 | . 8 . . Catastrophic . | . . . . Database Lockouts . | . . . . Manual 1 | . . . 1 Terminals 13 | . 13 . . Fabricators . | . . . . Repair Stations 4 | . 4 . . Recycling Units 3 | . 3 . . Scanalyzers . | . . . . Garrison Access . | . . . . Terminal Hacks 8 | . 8 . . Prototype ID Bank 1 | . 1 . . Locate Traps 2 | . 2 . . Disarm Traps 1 | . 1 . . Dispatch Records 1 | . 1 . . Maintenance Status 1 | . 1 . . Investigation Status 1 | . 1 . . Reinforcement Status 1 | . 1 . . Fabricator Hacks . | . . . . Repair Station Hacks 2 | . 2 . . Scan Component 1 | . 1 . . Repair 1 | . 1 . . Recycling Unit Hacks 2 | . 2 . . Retrieve Matter 1 | . 1 . . Retrieve Components 1 | . 1 . . Scanalyzer . | . . . . Garrison Access Hacks . | . . . . Unauthorized Hacks . | . . . . Terminals . | . . . . Fabricators . | . . . . Repair Stations . | . . . . Recycling Units . | . . . . Scanalyzers . | . . . . Garrison Access . | . . . . Data Cores Recovered . | . . . . Used . | . . . . Hacking Detections 3 | . 3 . . Full Trace Events 3 | . 3 . . Feedback Events 1 | . 1 . . Corruption 1 | . 1 . . Feedback Blocked . | . . . . Robot Schematics Acquired . | . . . . Robots Built . | . . . . Authchips . | . . . . Time . | . . . . Total Robot Build Rating . | . . . . Part Schematics Acquired . | . . . . Parts Built . | . . . . Authchips . | . . . . Time . | . . . . Total Part Build Rating . | . . . . Part Studies Acquired . | . . . . Parts Repaired 1 | . 1 . . Time 38 | . 38 . . Parts Recycled . | . . . . Recycled Matter . | . . . . Retrieved Matter . | . . . . Retrieved Components 2 | . 2 . . Parts Scanalyzed . | . . . . Part Schematics Acquired . | . . . . Parts Damaged . | . . . . Bothacking | -11 -10 -10 -10 ------------ Run | Yrd Mat Min Sub Used RIF Installer . | . . . . Robots Hacked . | . . . . Non-combat . | . . . . Combat . | . . . . Robot Hacks Applied . | . . . . Relay Couplers Released . | . . . . Fabnet Peak Effective % . | . . . . Robots Rewired . | . . . . Allies Hacked . | . . . . Hacks Repelled . | . . . . Allies | -11 -10 -10 -10 -------- Run | Yrd Mat Min Sub Total Allies . | . . . . Largest Group . | . . . . Highest-Rated Group . | . . . . Highest-Rated Ally . | . . . . Total Orders . | . . . . Ally Attacks . | . . . . Total Damage . | . . . . Kills . | . . . . Allies Corrupted . | . . . . Allies Melted . | . . . . Intel | -11 -10 -10 -10 ------- Run | Yrd Mat Min Sub Active Infowar (turns) 2660 | 22 811 1542 285 Terrain 2660 | 22 811 1542 285 Robot Analysis Total . | . . . . Derelict Logs Recovered 2 | . . 1 1 Drone Launches . | . . . . Drone Recoveries . | . . . . Exploration | -11 -10 -10 -10 ------------- Run | Yrd Mat Min Sub Turns Passed 3626 | 133 850 1542 1101 Spaces Moved 2221 | 89 513 874 745 Core 21 | 20 . . 1 Treads . | . . . . Legs 2200 | 69 513 874 744 Wheels . | . . . . Hover . | . . . . Flight . | . . . . Fastest Speed 50 | 50 120 120 120 Average Speed 123 | 104 120 120 133 Slowest Speed 150 | 120 120 120 150 Overloaded Moves . | . . . . Propulsion Burnouts . | . . . . Robots Hopped . | . . . . Potential Cave-ins . | . . . . Cave-ins Triggered . | . . . . Exploration Rate (%) 45 | 4 42 99 37 Regions Visited 3 Branch Regions 2 Pre-discovered Areas 1 | . . 1 . Known Exits Taken 2 | . 1 1 . Unknown Exits Taken 1 | 1 . . . Scrap Searched 1 | . . 1 . Spaces Dug 18 | . 18 . . Terrain Destroyed 67 | . 18 5 44 Melee . | . . . . Projectile . | . . . . AOE 67 | . 18 5 44 Terrain Rammed . | . . . . Walls Destroyed . | . . . . Machines Disabled . | . . . . Actions | -11 -10 -10 -10 --------- Run | Yrd Mat Min Sub Total 2922 | 111 668 1337 806 Wait 532 | 1 93 431 7 Move 2218 | 88 512 873 745 Hop . | . . . . Pick Up 27 | 7 7 6 7 Fast Attach . | . . . . Attach 19 | 6 4 3 6 Detach 3 | . 2 . 1 Swap 13 | . 5 4 4 Drop 10 | . 3 3 4 Fire 98 | 9 40 17 32 Melee . | . . . . Ram . | . . . . Kick 2 | . 2 . . Crush . | . . . . Escape Stasis . | . . . . Rewire . | . . . . Trap . | . . . . Miscellaneous . | . . . . Route ------- -11/Scrapyard -10/Materials (discovered 2 exits: *Mat / *Min) -10/Mines (discovered 3 exits: *Mat x2 / *Sub) -10/Subcaves (discovered 1 exit: *Mat) History --------- Turn | Location | Event 2 | -11/Scrapyard | Met Revision 17 15 | -11/Scrapyard | Discovered new exit (range 15) 134 | -11/Scrapyard | Entered Materials 298 | -10/Materials | Discovered new exit (range 13) 318 | -10/Materials | Build established: Mutant 601 | -10/Materials | Identified exit to Mines 680 | -10/Materials | Repaired Imp. Terrain Scanner 762 | -10/Materials | Discovered new exit (range 10) 776 | -10/Materials | Identified exit to Materials 984 | -10/Materials | Entered Mines 1088 | -10/Mines | Learned location of Storage (-8) 1120 | -10/Mines | Discovered exit to Materials (range 5) 1148 | -10/Mines | Build established: Scavenger-Mutant 1171 | -10/Mines | Found a damaged Exp. Sensor Array with a note attached 1822 | -10/Mines | Discovered exit to Materials (range 5) 2272 | -10/Mines | Discovered new exit (range 7) 2291 | -10/Mines | Identified exit to Subcaves 2526 | -10/Mines | Entered Subcaves 2549 | -10/Subcaves | Core integrity fell below 50% 2609 | -10/Subcaves | Shifting Twisted Machinery released Shrapnel Trap 2623 | -10/Subcaves | Discovered new exit (range 16) 2641 | -10/Subcaves | Identified exit to Materials 2685 | -10/Subcaves | Shifting Twisted Machinery released Sub. Monowheel 2761 | -10/Subcaves | Shifting Twisted Machinery released Sub. Laser 2798 | -10/Subcaves | Core integrity fell below 20% 2945 | -10/Subcaves | Learned Materials garrison access intel 3098 | -10/Subcaves | Build established: Mutant 3196 | -10/Subcaves | Visited 4L-MR0's lab 3627 | -10/Subcaves | Destroyed by 4A-XHZ(R) with Subdweller Laser Last Messages --------------- data lost. 03307_ System corrupted: Matter fused (-10). 03519_ E9CJ<9VP1|UN1DSHLFQAHZ&N0%KMA,W8 WYGEA 03555_ DI-V02(R) destroyed. 03555_ Ion Engine destroyed. 03557_ Mak. Leg destroyed. 03560_ Sub. Laser shoots sparks and powers down. 03562_ PH-B98(R) destroyed. 03574_ Acquired Sub. Laser. 03576_ Dropped Broken Sub. Laser. 03579_ Acquired 27 matter. 03583_ Subatomizers dissect the Broken Sub. Laser. 03608_ The unstable cave ceiling collapses. 03613_ Grenade Launcher destroyed. 03618_ Imp. Ion Engine destroyed. 03618_ Mak. Leg destroyed. 03618_ ZY-YVK(R) destroyed. 03621_ 4A-XHZ(R) affixes Scrap Shield Fragment to Scrap Shield. Map ----- +----------------------------------------------------+ | | | | | ?????????????????????????????????????????????????? | | ?????????????????????????????????????????????????? | | ?????????????????????????????????????????????????? | | ?????????????????????????????????????????????????? | | ?????????????????????????????????????????????????? | | ?????????????????????????????????????????????????? | | ?????????????????????????????????????????????????? | | ?????????????????????????????????????????????????? | | ?????????????????????????????????????????????????? | | ?????????????????????????????????????????????????? | | ?????????????????????????????????????????????????? | | ?????????????????????????????????????????????????? | | ?????????????????????????????????????????????????? | | ?????????????????????????????????????????????????? | | ???????????????????????????????????#?????????????? | | ??????????????????????####???????? ####??????????? | | ?????????????????????## #???????" " ???????????? | | ????????????????????## ###????" " ??????????? | | ????????????????????? #???" " ???????????? | | ?????????????????????## #?? " #????????????? | | ????????????????????## ### " #????????????? | | ???????????????????## # ! #????????????? | | ?????????????????### [R #?????????????? | | ???????????????### # @ != #???????????????? | | ?????????????### # #????????????? | | ?????????##### # ##??????##????????????? | | ??????#### & ##???? #?????????????? | | ??????# # #### ## ## #?????????????? | | ??????# #??### [ "" #??????????????????? | | ??????# ## #???#" " """"##??????????????????? | | ?????## #?######" " # # """#???????????????????? | | ?????# #### # ## #???????????????????? | | ?????# # "" ######?# #??????????????????? | | ????## # #" ####???? ?????????????????? | | ????# ### ##"" ##???# ????????????????? | | ????# #### ## """ ""#???? ???????????????? | | ??### ## ### """#???? ## ??????????????? | | ## ### ##????? ##????????????????? | | ? ##???????##?????????????????? | | #???????????????????????????? | | ### #???????????????????????????? | | ######??## ##??????????????????????????? | | ?????????## ## #??????????????????????????? | | ??????????# ### ##?????????????????????????? | | ??????????# ###### ##?#??????????????????????? | | ??????##### ##?# ##???????????????????????? | | ??#???# ### #???????????????????????? | | ??????# ## ## #???????????????????????? | +----------------------------------------------------+ Best States ------------- Heat Dissipation 25 Energy Generation 12 Energy Capacity 265 Matter Stores 300 Matter Capacity 300 Sight Range 16 Terrain Scan Range 16 Terrain Scan Density 10 Evasion (%) 55 Item Schematics ----------------- None Robot Schematics ------------------ None Fabricated ------------ Nothing Repaired ---------- Imp. Terrain Scanner | 22% | -10/Materials Studied --------- None Alien Tech Used ----------------- None Achievements -------------- Mistaken Identity You Again Challenges ------------ None Game ------ Seed VampiricSixProcessor Manual? 0 Play Time 00:16:29 Cumulative 18.7 hours Start 2026.04.22 @ 21:22:36 End 2026.04.22 @ 21:39:03 Sessions 1 Manual Loads 0 Difficulty Rogue Special Mode None Game No. 63 Rogue 63 Adventurer 0 Explorer 0 Win Type - Total 0 Types 0/0/0/0/0/0/0/0/0/0 Lore% 7 Gallery% 16 Achievement% 14 Wizard Run 0 Options --------- Layout 1 ASCII 0 Keyboard 0 Movement Arrows Keybinds 0 Fullscreen 1 Font 24/Tamsyn Map View 50x35 Zoom Use 0% Tactical HUD 1 Map Filters NONE Filters NONE Steam 1 RUN: 3123c590-fca5-4355-97b8-c45bc3f71b21